[Event "Early-Titled-Tuesday-Blitz-April-23-2024"]
[Site "Chess.com"]
[Date "2024.04.23"]
[Round "10"]
[White "stepanosinovsky"]
[Black "RasSanti"]
[Result "1-0"]
[WhiteElo "2377"]
[BlackElo "2268"]
[TimeControl "180+1"]
[EndTime "9:59:41 PDT"]
[Termination "stepanosinovsky won by checkmate"]

1. e4 {[%clk 0:02:57.5]} 1... d5 {[%clk 0:02:56]} 2. exd5 {[%clk 0:02:56.8]}
2... Qxd5 {[%clk 0:02:56.9]} 3. Nc3 {[%clk 0:02:56.6]} 3... Qd6 {[%clk
0:02:56.4]} 4. g3 {[%clk 0:02:54]} 4... Nf6 {[%clk 0:02:49.1]} 5. Bg2 {[%clk
0:02:53.8]} 5... Bg4 {[%clk 0:02:47.8]} 6. Nge2 {[%clk 0:02:53]} 6... Nc6 {[%clk
0:02:46.2]} 7. h3 {[%clk 0:02:53.1]} 7... Bxe2 {[%clk 0:02:39.9]} 8. Nxe2 {[%clk
0:02:49.1]} 8... e6 {[%clk 0:02:37.4]} 9. O-O {[%clk 0:02:30.8]} 9... Be7 {[%clk
0:02:33.2]} 10. a3 {[%clk 0:02:24.6]} 10... O-O {[%clk 0:02:32]} 11. b4 {[%clk
0:02:24.6]} 11... Rad8 {[%clk 0:02:27.4]} 12. d3 {[%clk 0:02:21.2]} 12... Qd7
{[%clk 0:02:17.7]} 13. Bb2 {[%clk 0:02:18.7]} 13... a6 {[%clk 0:02:06.4]} 14.
Re1 {[%clk 0:01:53.5]} 14... Ne8 {[%clk 0:02:03.1]} 15. d4 {[%clk 0:01:25.5]}
15... Bf6 {[%clk 0:01:48.7]} 16. c3 {[%clk 0:01:25.1]} 16... Ne7 {[%clk
0:01:45.6]} 17. Qd3 {[%clk 0:01:14.6]} 17... c6 {[%clk 0:01:41.3]} 18. c4 {[%clk
0:01:12.2]} 18... e5 {[%clk 0:01:34.5]} 19. Rad1 {[%clk 0:01:01.2]} 19... Nc7
{[%clk 0:01:26.4]} 20. dxe5 {[%clk 0:00:51.3]} 20... Qxd3 {[%clk 0:01:23.3]} 21.
Rxd3 {[%clk 0:00:50.5]} 21... Rxd3 {[%clk 0:01:23]} 22. exf6 {[%clk 0:00:50.6]}
22... gxf6 {[%clk 0:01:15.8]} 23. Nf4 {[%clk 0:00:50.4]} 23... Rd7 {[%clk
0:01:15.1]} 24. Nh5 {[%clk 0:00:41.9]} 24... Ne8 {[%clk 0:01:13.1]} 25. h4
{[%clk 0:00:42]} 25... Rc7 {[%clk 0:00:45.6]} 26. Nxf6+ {[%clk 0:00:35.3]} 26...
Nxf6 {[%clk 0:00:44.7]} 27. Bxf6 {[%clk 0:00:36.2]} 27... Nf5 {[%clk 0:00:33.5]}
28. Re5 {[%clk 0:00:34]} 28... Nh6 {[%clk 0:00:25.8]} 29. Rg5# {[%clk
0:00:29.9]} 1-0

[Event "Early-Titled-Tuesday-Blitz-April-23-2024"]
[Site "Chess.com"]
[Date "2024.04.23"]
[Round "10"]
[White "AradNazari"]
[Black "Prizant_academy"]
[Result "0-1"]
[WhiteElo "2754"]
[BlackElo "2949"]
[TimeControl "180+1"]
[EndTime "9:59:46 PDT"]
[Termination "Prizant_academy won by resignation"]

1. e4 {[%clk 0:03:00.9]} 1... c5 {[%clk 0:02:59.5]} 2. Nf3 {[%clk 0:03:01.2]}
2... e6 {[%clk 0:03:00.2]} 3. d4 {[%clk 0:03:00.4]} 3... cxd4 {[%clk 0:03:01.1]}
4. Nxd4 {[%clk 0:03:01.2]} 4... Nf6 {[%clk 0:03:01.8]} 5. Nc3 {[%clk 0:03:01.5]}
5... Nc6 {[%clk 0:03:02.5]} 6. Nxc6 {[%clk 0:03:00.5]} 6... bxc6 {[%clk
0:03:03.4]} 7. e5 {[%clk 0:03:01.2]} 7... Nd5 {[%clk 0:03:04.1]} 8. Ne4 {[%clk
0:03:01.8]} 8... Qc7 {[%clk 0:03:04.8]} 9. f4 {[%clk 0:03:01.8]} 9... Rb8 {[%clk
0:03:05.5]} 10. c4 {[%clk 0:02:24.8]} 10... Bb4+ {[%clk 0:03:05]} 11. Ke2 {[%clk
0:02:23.2]} 11... O-O {[%clk 0:03:05.2]} 12. a3 {[%clk 0:02:22.2]} 12... Be7
{[%clk 0:03:05]} 13. cxd5 {[%clk 0:02:21.6]} 13... cxd5 {[%clk 0:03:05.9]} 14.
Nd6 {[%clk 0:02:22.5]} 14... f6 {[%clk 0:03:06.6]} 15. Nxc8 {[%clk 0:02:18.2]}
15... Rfxc8 {[%clk 0:03:07.5]} 16. exf6 {[%clk 0:02:09.1]} 16... Bxf6 {[%clk
0:03:08.4]} 17. Rb1 {[%clk 0:02:09.5]} 17... Kh8 {[%clk 0:03:09]} 18. Kf3 {[%clk
0:01:58.3]} 18... Qc6 {[%clk 0:01:45.9]} 19. Bd3 {[%clk 0:01:55.1]} 19... e5
{[%clk 0:01:43.2]} 20. fxe5 {[%clk 0:01:10.8]} 20... Bxe5 {[%clk 0:01:44.1]} 21.
Re1 {[%clk 0:00:28.6]} 21... Rf8+ {[%clk 0:01:19.4]} 22. Ke2 {[%clk 0:00:24.4]}
22... Rbe8 {[%clk 0:01:19]} 23. Be3 {[%clk 0:00:12.8]} 23... Bd4 {[%clk
0:01:07.2]} 24. Kd2 {[%clk 0:00:12.8]} 24... Bxe3+ {[%clk 0:01:06.7]} 25. Rxe3
{[%clk 0:00:13.5]} 25... Qh6 {[%clk 0:01:07.5]} 26. Kc2 {[%clk 0:00:02.3]} 26...
Qxe3 {[%clk 0:01:05.7]} 27. Qh5 {[%clk 0:00:02.3]} 27... Rf2+ {[%clk 0:01:00.7]}
28. Kc3 {[%clk 0:00:02]} 28... Rc8+ {[%clk 0:01:00.7]} 29. Kb4 {[%clk
0:00:02.1]} 29... Qd4+ {[%clk 0:00:59]} 0-1

[Event "Early-Titled-Tuesday-Blitz-April-23-2024"]
[Site "Chess.com"]
[Date "2024.04.23"]
[Round "10"]
[White "GalaxyRoman"]
[Black "jinbojinbo"]
[Result "1-0"]
[WhiteElo "2792"]
[BlackElo "2654"]
[TimeControl "180+1"]
[EndTime "9:59:48 PDT"]
[Termination "GalaxyRoman won by checkmate"]

1. e4 {[%clk 0:03:00.9]} 1... e5 {[%clk 0:02:59.4]} 2. Nf3 {[%clk 0:03:00.6]}
2... Nc6 {[%clk 0:02:59.6]} 3. Bc4 {[%clk 0:03:01]} 3... Bc5 {[%clk 0:02:57.3]}
4. c3 {[%clk 0:03:01.2]} 4... Nf6 {[%clk 0:02:56.4]} 5. d3 {[%clk 0:03:01.7]}
5... d6 {[%clk 0:02:51.5]} 6. Bb3 {[%clk 0:03:00.9]} 6... a6 {[%clk 0:02:49.8]}
7. Nbd2 {[%clk 0:03:01.2]} 7... Ba7 {[%clk 0:02:47]} 8. h3 {[%clk 0:03:01.1]}
8... O-O {[%clk 0:02:46]} 9. Nf1 {[%clk 0:03:01.2]} 9... Be6 {[%clk 0:02:40.3]}
10. Bc2 {[%clk 0:02:55.5]} 10... Ne7 {[%clk 0:02:36]} 11. Qe2 {[%clk 0:02:53.9]}
11... Ng6 {[%clk 0:02:34.2]} 12. Bg5 {[%clk 0:02:42.3]} 12... h6 {[%clk
0:02:30.7]} 13. Bxf6 {[%clk 0:02:42]} 13... Qxf6 {[%clk 0:02:30.3]} 14. g3
{[%clk 0:02:42.6]} 14... Qe7 {[%clk 0:02:12.3]} 15. Ne3 {[%clk 0:02:41.8]} 15...
c6 {[%clk 0:02:10.4]} 16. Nf5 {[%clk 0:02:38]} 16... Qd7 {[%clk 0:02:06.5]} 17.
N5h4 {[%clk 0:02:08.2]} 17... Nxh4 {[%clk 0:02:03]} 18. Nxh4 {[%clk 0:02:09.1]}
18... d5 {[%clk 0:01:54.3]} 19. g4 {[%clk 0:02:06.9]} 19... dxe4 {[%clk
0:01:51.2]} 20. dxe4 {[%clk 0:02:07.8]} 20... Rad8 {[%clk 0:01:50.4]} 21. Nf5
{[%clk 0:02:05.9]} 21... Bc4 {[%clk 0:01:35.1]} 22. Qd1 {[%clk 0:01:51]} 22...
Qe6 {[%clk 0:01:16.7]} 23. Qf3 {[%clk 0:01:49]} 23... Bxa2 {[%clk 0:01:15.8]}
24. g5 {[%clk 0:01:39.5]} 24... g6 {[%clk 0:00:30.6]} 25. Nxh6+ {[%clk
0:01:36.6]} 25... Kg7 {[%clk 0:00:30.6]} 26. Ng4 {[%clk 0:01:30.9]} 26... Bc4
{[%clk 0:00:29.3]} 27. h4 {[%clk 0:01:16.4]} 27... Rh8 {[%clk 0:00:29]} 28. h5
{[%clk 0:01:06.6]} 28... Rxh5 {[%clk 0:00:24.5]} 29. Rxh5 {[%clk 0:01:06.4]}
29... gxh5 {[%clk 0:00:24.7]} 30. Nf6 {[%clk 0:01:07]} 30... Qd6 {[%clk
0:00:09.9]} 31. Rd1 {[%clk 0:01:03.7]} 31... Qe7 {[%clk 0:00:08.8]} 32. Qxh5
{[%clk 0:01:00.2]} 32... Rxd1+ {[%clk 0:00:08.5]} 33. Bxd1 {[%clk 0:00:59]}
33... Qe6 {[%clk 0:00:04.9]} 34. Qh6# {[%clk 0:00:59.3]} 1-0

[Event "Early-Titled-Tuesday-Blitz-April-23-2024"]
[Site "Chess.com"]
[Date "2024.04.23"]
[Round "10"]
[White "average_trans"]
[Black "Nikita_Klepikov"]
[Result "1-0"]
[WhiteElo "2258"]
[BlackElo "2333"]
[TimeControl "180+1"]
[EndTime "9:59:50 PDT"]
[Termination "average_trans won by resignation"]

1. d4 {[%clk 0:03:00.9]} 1... Nf6 {[%clk 0:02:58.1]} 2. Nc3 {[%clk 0:02:59]}
2... d5 {[%clk 0:02:57.6]} 3. Bg5 {[%clk 0:02:55.8]} 3... c5 {[%clk 0:02:53.5]}
4. dxc5 {[%clk 0:02:55.1]} 4... e6 {[%clk 0:02:47.5]} 5. e4 {[%clk 0:02:49.9]}
5... d4 {[%clk 0:02:17.7]} 6. Nb5 {[%clk 0:02:40.8]} 6... Bxc5 {[%clk
0:02:14.3]} 7. e5 {[%clk 0:02:40]} 7... h6 {[%clk 0:02:13.9]} 8. exf6 {[%clk
0:02:22.2]} 8... hxg5 {[%clk 0:02:13.5]} 9. fxg7 {[%clk 0:02:22.2]} 9... Rg8
{[%clk 0:02:12.8]} 10. Qh5 {[%clk 0:02:21.7]} 10... Rxg7 {[%clk 0:01:46.2]} 11.
Qh8+ {[%clk 0:02:15.9]} 11... Bf8 {[%clk 0:01:46.1]} 12. O-O-O {[%clk 0:02:15]}
12... Nc6 {[%clk 0:01:44.5]} 13. Nf3 {[%clk 0:02:13.1]} 13... e5 {[%clk
0:01:28.5]} 14. Bc4 {[%clk 0:02:05.6]} 14... a6 {[%clk 0:01:23.5]} 15. Rhe1
{[%clk 0:01:55.2]} 15... f6 {[%clk 0:00:55]} 16. Qh5+ {[%clk 0:01:47.4]} 16...
Kd7 {[%clk 0:00:46]} 17. Nbxd4 {[%clk 0:01:45.1]} 17... exd4 {[%clk 0:00:32.7]}
18. Nxd4 {[%clk 0:01:44.9]} 18... Nxd4 {[%clk 0:00:30]} 19. Rxd4+ {[%clk
0:01:45.8]} 19... Bd6 {[%clk 0:00:29.7]} 20. Red1 {[%clk 0:01:43.8]} 20... Kc7
{[%clk 0:00:27.1]} 21. Rxd6 {[%clk 0:01:31.6]} 21... Rd7 {[%clk 0:00:22.6]} 22.
Rxd7+ {[%clk 0:01:23.1]} 22... Bxd7 {[%clk 0:00:22.6]} 23. Be6 {[%clk
0:01:20.8]} 23... Bxe6 {[%clk 0:00:18.5]} 24. Rxd8 {[%clk 0:01:19.7]} 24... Rxd8
{[%clk 0:00:19.4]} 25. Qh6 {[%clk 0:01:13.1]} 25... Rd6 {[%clk 0:00:05.7]} 26.
Qxf6 {[%clk 0:01:09.2]} 26... Bg4 {[%clk 0:00:04.5]} 27. Qe7+ {[%clk 0:01:03.4]}
27... Kc6 {[%clk 0:00:03.5]} 28. f3 {[%clk 0:01:01.6]} 28... Be6 {[%clk
0:00:02.8]} 29. Qxg5 {[%clk 0:00:59.2]} 29... Bc4 {[%clk 0:00:02.4]} 30. b3
{[%clk 0:00:56.8]} 30... Bd5 {[%clk 0:00:01.8]} 1-0

[Event "Early-Titled-Tuesday-Blitz-April-23-2024"]
[Site "Chess.com"]
[Date "2024.04.23"]
[Round "10"]
[White "chess_sharparchitect"]
[Black "HanSchut"]
[Result "0-1"]
[WhiteElo "2224"]
[BlackElo "2337"]
[TimeControl "180+1"]
[EndTime "9:59:51 PDT"]
[Termination "HanSchut won by resignation"]

1. c4 {[%clk 0:03:00.9]} 1... Nf6 {[%clk 0:02:58.8]} 2. Nc3 {[%clk 0:03:00.5]}
2... d5 {[%clk 0:02:59.1]} 3. cxd5 {[%clk 0:03:00.2]} 3... Nxd5 {[%clk 0:03:00]}
4. d4 {[%clk 0:03:00.1]} 4... g6 {[%clk 0:02:56.5]} 5. e4 {[%clk 0:03:00.2]}
5... Nxc3 {[%clk 0:02:56.9]} 6. bxc3 {[%clk 0:03:00.9]} 6... Bg7 {[%clk
0:02:57.5]} 7. Nf3 {[%clk 0:03:00.6]} 7... c5 {[%clk 0:02:58]} 8. Be3 {[%clk
0:02:49.8]} 8... Qa5 {[%clk 0:02:54.4]} 9. Qd2 {[%clk 0:02:26.5]} 9... Nc6
{[%clk 0:02:52.3]} 10. Bc4 {[%clk 0:02:21.4]} 10... O-O {[%clk 0:02:48.7]} 11.
Rd1 {[%clk 0:01:58.1]} 11... Bg4 {[%clk 0:02:46.2]} 12. Be2 {[%clk 0:01:46.9]}
12... Rfd8 {[%clk 0:02:36.8]} 13. e5 {[%clk 0:01:37.7]} 13... Bxf3 {[%clk
0:02:21]} 14. Bxf3 {[%clk 0:01:34.4]} 14... Nxe5 {[%clk 0:02:21.1]} 15. Bxb7
{[%clk 0:01:32.4]} 15... Rab8 {[%clk 0:02:21.1]} 16. Be4 {[%clk 0:01:07.5]}
16... Nc4 {[%clk 0:02:16.5]} 17. Qc2 {[%clk 0:00:55.9]} 17... cxd4 {[%clk
0:02:02]} 18. Bf4 {[%clk 0:00:44.7]} 18... e5 {[%clk 0:01:38.1]} 19. Bg5 {[%clk
0:00:36]} 19... f6 {[%clk 0:01:38.1]} 20. Bh4 {[%clk 0:00:19.1]} 20... Rb2
{[%clk 0:01:36.1]} 21. Qc1 {[%clk 0:00:16.9]} 21... dxc3 {[%clk 0:01:13.2]} 22.
Rxd8+ {[%clk 0:00:13.6]} 22... Qxd8 {[%clk 0:01:14.1]} 23. Qxc3 {[%clk
0:00:11.1]} 23... Qd2+ {[%clk 0:01:12.3]} 24. Qxd2 {[%clk 0:00:09.4]} 24... Nxd2
{[%clk 0:01:12.7]} 25. Bd5+ {[%clk 0:00:04.4]} 25... Kf8 {[%clk 0:01:12.2]} 26.
Ke2 {[%clk 0:00:03.3]} 26... g5 {[%clk 0:00:53.6]} 27. Bg3 {[%clk 0:00:03]}
27... f5 {[%clk 0:00:52.7]} 28. Bf4 {[%clk 0:00:02.8]} 28... exf4 {[%clk
0:00:50.6]} 29. Rd1 {[%clk 0:00:03.7]} 29... Ne4+ {[%clk 0:00:48.8]} 30. Kd3
{[%clk 0:00:03.4]} 30... Rxf2 {[%clk 0:00:43.9]} 0-1

[Event "Early-Titled-Tuesday-Blitz-April-23-2024"]
[Site "Chess.com"]
[Date "2024.04.23"]
[Round "10"]
[White "maracayo"]
[Black "rionelG"]
[Result "1-0"]
[WhiteElo "2348"]
[BlackElo "2221"]
[TimeControl "180+1"]
[EndTime "10:00:01 PDT"]
[Termination "maracayo won by checkmate"]

1. e4 {[%clk 0:03:00.9]} 1... c5 {[%clk 0:02:59.7]} 2. Nf3 {[%clk 0:03:00.5]}
2... d6 {[%clk 0:02:59.8]} 3. d3 {[%clk 0:03:00.3]} 3... g6 {[%clk 0:02:57.1]}
4. Nbd2 {[%clk 0:03:00.4]} 4... Bg7 {[%clk 0:02:57.7]} 5. Be2 {[%clk 0:03:00.7]}
5... Nc6 {[%clk 0:02:57.6]} 6. h3 {[%clk 0:03:01]} 6... e6 {[%clk 0:02:56.7]} 7.
c3 {[%clk 0:03:01.5]} 7... Nge7 {[%clk 0:02:57.3]} 8. O-O {[%clk 0:03:01.6]}
8... O-O {[%clk 0:02:57.3]} 9. Re1 {[%clk 0:03:01.9]} 9... b6 {[%clk 0:02:56]}
10. Bf1 {[%clk 0:03:00]} 10... Bb7 {[%clk 0:02:55.6]} 11. Nb3 {[%clk 0:03:00.4]}
11... d5 {[%clk 0:02:40.1]} 12. exd5 {[%clk 0:02:59]} 12... Nxd5 {[%clk
0:02:39.4]} 13. d4 {[%clk 0:02:58.6]} 13... cxd4 {[%clk 0:02:38.7]} 14. Nbxd4
{[%clk 0:02:57.8]} 14... Nxd4 {[%clk 0:02:36.6]} 15. cxd4 {[%clk 0:02:19.3]}
15... Rc8 {[%clk 0:02:28.4]} 16. Bg5 {[%clk 0:02:17.4]} 16... Qd6 {[%clk
0:02:14.2]} 17. a3 {[%clk 0:02:16.6]} 17... h6 {[%clk 0:01:59.3]} 18. Bh4 {[%clk
0:02:11]} 18... Nf4 {[%clk 0:01:55]} 19. Bg3 {[%clk 0:02:05.9]} 19... g5 {[%clk
0:01:52]} 20. h4 {[%clk 0:01:17.3]} 20... Bxf3 {[%clk 0:01:36.5]} 21. Qxf3
{[%clk 0:01:15.5]} 21... Qxd4 {[%clk 0:01:36.9]} 22. hxg5 {[%clk 0:01:11.3]}
22... hxg5 {[%clk 0:01:36.5]} 23. Rad1 {[%clk 0:01:03.2]} 23... Qxb2 {[%clk
0:01:35]} 24. Rd7 {[%clk 0:00:59.9]} 24... a5 {[%clk 0:00:46.8]} 25. Bxf4 {[%clk
0:00:53.2]} 25... gxf4 {[%clk 0:00:43.8]} 26. Qe4 {[%clk 0:00:46.6]} 26... Qxa3
{[%clk 0:00:32.8]} 27. Bd3 {[%clk 0:00:43.6]} 27... Rfd8 {[%clk 0:00:22.9]} 28.
Rxf7 {[%clk 0:00:34.9]} 28... Kxf7 {[%clk 0:00:19.9]} 29. Qxe6+ {[%clk
0:00:33.8]} 29... Kf8 {[%clk 0:00:18.9]} 30. Bh7 {[%clk 0:00:32.9]} 30... Rc1
{[%clk 0:00:14.9]} 31. Qg8# {[%clk 0:00:32]} 1-0

[Event "Early-Titled-Tuesday-Blitz-April-23-2024"]
[Site "Chess.com"]
[Date "2024.04.23"]
[Round "10"]
[White "ural58"]
[Black "duone"]
[Result "1-0"]
[WhiteElo "2569"]
[BlackElo "2451"]
[TimeControl "180+1"]
[EndTime "10:00:04 PDT"]
[Termination "ural58 won by resignation"]

1. e4 {[%clk 0:02:46.9]} 1... c5 {[%clk 0:02:55.8]} 2. b3 {[%clk 0:02:45.9]}
2... Nf6 {[%clk 0:02:53.2]} 3. e5 {[%clk 0:02:45.3]} 3... Nd5 {[%clk 0:02:52.9]}
4. Nc3 {[%clk 0:02:45.9]} 4... Nxc3 {[%clk 0:02:52.4]} 5. dxc3 {[%clk
0:02:46.8]} 5... g6 {[%clk 0:02:53]} 6. Nf3 {[%clk 0:02:46.4]} 6... Bg7 {[%clk
0:02:53]} 7. Bc4 {[%clk 0:02:46.8]} 7... O-O {[%clk 0:02:52.3]} 8. O-O {[%clk
0:02:47.3]} 8... Nc6 {[%clk 0:02:52.8]} 9. Bf4 {[%clk 0:01:05.4]} 9... a6 {[%clk
0:02:43.7]} 10. a4 {[%clk 0:01:04.3]} 10... b6 {[%clk 0:02:39.7]} 11. Qd2 {[%clk
0:01:03.7]} 11... Bb7 {[%clk 0:02:39.7]} 12. Rad1 {[%clk 0:01:02.8]} 12... Na5
{[%clk 0:02:36.6]} 13. Qxd7 {[%clk 0:01:00.8]} 13... Bxf3 {[%clk 0:02:34.2]} 14.
gxf3 {[%clk 0:00:55.7]} 14... Nxc4 {[%clk 0:02:33.5]} 15. bxc4 {[%clk
0:00:55.3]} 15... e6 {[%clk 0:02:16.7]} 16. Qc6 {[%clk 0:00:40.1]} 16... Qh4
{[%clk 0:02:13.4]} 17. Qe4 {[%clk 0:00:35.8]} 17... Rad8 {[%clk 0:02:07]} 18.
Bg3 {[%clk 0:00:35.6]} 18... Qxe4 {[%clk 0:02:06.3]} 19. fxe4 {[%clk 0:00:35.8]}
19... g5 {[%clk 0:02:02.9]} 20. f4 {[%clk 0:00:35.2]} 20... gxf4 {[%clk
0:02:02.9]} 21. Bxf4 {[%clk 0:00:35.3]} 21... Rfe8 {[%clk 0:02:01.4]} 22. Kf2
{[%clk 0:00:34.1]} 22... Kf8 {[%clk 0:02:00.7]} 23. Ke3 {[%clk 0:00:26.4]} 23...
h6 {[%clk 0:02:00.3]} 24. Rb1 {[%clk 0:00:24.5]} 24... Rb8 {[%clk 0:01:57.8]}
25. Rfd1 {[%clk 0:00:24.6]} 25... Ke7 {[%clk 0:01:57.4]} 26. Rd6 {[%clk
0:00:23.7]} 26... Red8 {[%clk 0:01:47.6]} 27. Rbxb6 {[%clk 0:00:21.6]} 27...
Rxb6 {[%clk 0:01:47.5]} 28. Rxb6 {[%clk 0:00:21.6]} 28... Rd1 {[%clk 0:01:47.6]}
29. Rxa6 {[%clk 0:00:20.5]} 29... Rc1 {[%clk 0:01:44.8]} 30. Kd3 {[%clk
0:00:19.6]} 30... Rf1 {[%clk 0:01:43.3]} 31. Bg3 {[%clk 0:00:18.6]} 31... Rf3+
{[%clk 0:01:39.1]} 32. Kd2 {[%clk 0:00:18.1]} 32... h5 {[%clk 0:01:39]} 33. Ra7+
{[%clk 0:00:18.1]} 33... Ke8 {[%clk 0:01:35.8]} 34. Rc7 {[%clk 0:00:17.9]} 34...
Bh6+ {[%clk 0:01:35.4]} 35. Kd1 {[%clk 0:00:17.8]} 35... Rxc3 {[%clk 0:01:34.2]}
36. Rxc5 {[%clk 0:00:18.3]} 36... Re3 {[%clk 0:01:33.7]} 37. a5 {[%clk
0:00:17.3]} 37... Rxe4 {[%clk 0:01:29.9]} 38. a6 {[%clk 0:00:16.5]} 38... Rd4+
{[%clk 0:01:29.8]} 39. Ke2 {[%clk 0:00:15.9]} 39... Re4+ {[%clk 0:01:28.1]} 40.
Kf3 {[%clk 0:00:15.2]} 40... Re3+ {[%clk 0:01:28.4]} 41. Kg2 {[%clk 0:00:15.5]}
41... Ra3 {[%clk 0:01:25.7]} 42. Rc6 {[%clk 0:00:15.5]} 42... Kd7 {[%clk
0:01:25.1]} 43. Rb6 {[%clk 0:00:15.5]} 43... Kc7 {[%clk 0:01:24.9]} 44. Rb7+
{[%clk 0:00:15.6]} 44... Kc6 {[%clk 0:01:24.7]} 45. Rxf7 {[%clk 0:00:16]} 45...
Rxa6 {[%clk 0:01:24.4]} 46. Rf6 {[%clk 0:00:16.6]} 46... Bg7 {[%clk 0:01:23]}
47. Rxe6+ {[%clk 0:00:16.6]} 47... Kb7 {[%clk 0:01:23.4]} 48. Rxa6 {[%clk
0:00:17]} 48... Kxa6 {[%clk 0:01:24.1]} 49. e6 {[%clk 0:00:17.2]} 49... Bf6
{[%clk 0:01:23.8]} 50. Bd6 {[%clk 0:00:14.4]} 50... Kb7 {[%clk 0:01:23.7]} 51.
e7 {[%clk 0:00:15.2]} 51... Bxe7 {[%clk 0:01:23.7]} 52. Bxe7 {[%clk 0:00:15.9]}
52... Kc7 {[%clk 0:01:24.5]} 53. Bg5 {[%clk 0:00:16.3]} 53... Kc6 {[%clk
0:01:24.8]} 54. h4 {[%clk 0:00:17.1]} 54... Kc5 {[%clk 0:01:25.4]} 55. Kf3
{[%clk 0:00:17.6]} 55... Kxc4 {[%clk 0:01:25.9]} 56. Kf4 {[%clk 0:00:18.5]}
56... Kc3 {[%clk 0:01:26.5]} 57. Kf5 {[%clk 0:00:19.4]} 57... Kxc2 {[%clk
0:01:27.3]} 58. Kg6 {[%clk 0:00:20.2]} 58... Kd3 {[%clk 0:01:28.2]} 59. Kxh5
{[%clk 0:00:21.1]} 59... Ke4 {[%clk 0:01:29.1]} 60. Kg6 {[%clk 0:00:22]} 60...
Kf3 {[%clk 0:01:29.2]} 61. h5 {[%clk 0:00:22.9]} 61... Kg4 {[%clk 0:01:30.1]}
62. h6 {[%clk 0:00:23.8]} 62... Kg3 {[%clk 0:01:31]} 63. h7 {[%clk 0:00:24.5]}
63... Kf3 {[%clk 0:01:31.9]} 64. h8=Q {[%clk 0:00:25.4]} 1-0

[Event "Early-Titled-Tuesday-Blitz-April-23-2024"]
[Site "Chess.com"]
[Date "2024.04.23"]
[Round "10"]
[White "Chernov_Alexander_A"]
[Black "Acva-Alenok"]
[Result "1-0"]
[WhiteElo "2280"]
[BlackElo "2347"]
[TimeControl "180+1"]
[EndTime "10:00:04 PDT"]
[Termination "Chernov_Alexander_A won on time"]

1. d4 {[%clk 0:03:00.9]} 1... Nf6 {[%clk 0:02:52.7]} 2. Nf3 {[%clk 0:02:59.8]}
2... b6 {[%clk 0:02:51.4]} 3. c4 {[%clk 0:02:57.9]} 3... e6 {[%clk 0:02:49.1]}
4. Nc3 {[%clk 0:02:57.5]} 4... Bb7 {[%clk 0:02:47.6]} 5. Bg5 {[%clk 0:02:55.4]}
5... h6 {[%clk 0:02:39.9]} 6. Bh4 {[%clk 0:02:54.6]} 6... Bb4 {[%clk 0:02:36.9]}
7. e3 {[%clk 0:02:53.9]} 7... g5 {[%clk 0:02:33.3]} 8. Bg3 {[%clk 0:02:53.1]}
8... Ne4 {[%clk 0:02:33.8]} 9. Qc2 {[%clk 0:02:53]} 9... h5 {[%clk 0:02:14.3]}
10. Bd3 {[%clk 0:02:47.5]} 10... d5 {[%clk 0:02:10.8]} 11. cxd5 {[%clk
0:02:24.3]} 11... exd5 {[%clk 0:02:07.7]} 12. Bxe4 {[%clk 0:02:01.4]} 12... dxe4
{[%clk 0:02:05]} 13. Qa4+ {[%clk 0:01:59.6]} 13... Nc6 {[%clk 0:02:02.2]} 14.
Ne5 {[%clk 0:01:59.5]} 14... Rh6 {[%clk 0:01:03.6]} 15. h4 {[%clk 0:01:47.2]}
15... g4 {[%clk 0:00:33.3]} 16. O-O {[%clk 0:01:43.6]} 16... Be7 {[%clk
0:00:23]} 17. Nxe4 {[%clk 0:01:34.6]} 17... Bxh4 {[%clk 0:00:18.3]} 18. Bf4
{[%clk 0:01:33.4]} 18... Re6 {[%clk 0:00:16.5]} 19. Rfd1 {[%clk 0:01:14.8]}
19... Kf8 {[%clk 0:00:14.2]} 20. Ng3 {[%clk 0:00:57.6]} 20... Nxe5 {[%clk
0:00:11.5]} 21. dxe5 {[%clk 0:00:56]} 21... Qe7 {[%clk 0:00:08.8]} 22. Nxh5
{[%clk 0:00:54.7]} 22... Bg5 {[%clk 0:00:07.2]} 23. Rd7 {[%clk 0:00:40.5]} 23...
Bc6 {[%clk 0:00:01.7]} 24. Rxe7 {[%clk 0:00:36]} 1-0

[Event "Early-Titled-Tuesday-Blitz-April-23-2024"]
[Site "Chess.com"]
[Date "2024.04.23"]
[Round "10"]
[White "FuenfgegenWilly"]
[Black "JJDAREK"]
[Result "1-0"]
[WhiteElo "2488"]
[BlackElo "2351"]
[TimeControl "180+1"]
[EndTime "10:00:05 PDT"]
[Termination "FuenfgegenWilly won by resignation"]

1. e4 {[%clk 0:03:00.9]} 1... d6 {[%clk 0:03:00.1]} 2. Nc3 {[%clk 0:03:01.1]}
2... g6 {[%clk 0:02:57.4]} 3. f4 {[%clk 0:03:01.3]} 3... Bg7 {[%clk 0:02:57.2]}
4. Nf3 {[%clk 0:03:01.5]} 4... c5 {[%clk 0:02:55.2]} 5. Bb5+ {[%clk 0:03:01.1]}
5... Bd7 {[%clk 0:02:54.6]} 6. Bc4 {[%clk 0:03:01.6]} 6... Nc6 {[%clk
0:02:52.9]} 7. O-O {[%clk 0:03:01.4]} 7... Nd4 {[%clk 0:02:48]} 8. d3 {[%clk
0:02:53.2]} 8... e6 {[%clk 0:02:35.3]} 9. Nxd4 {[%clk 0:02:48.9]} 9... cxd4
{[%clk 0:02:34.7]} 10. Nb5 {[%clk 0:02:48.1]} 10... Qb6 {[%clk 0:02:16.4]} 11.
a4 {[%clk 0:02:26.5]} 11... a6 {[%clk 0:02:16.1]} 12. a5 {[%clk 0:02:26.4]}
12... Qc5 {[%clk 0:02:06.8]} 13. b4 {[%clk 0:02:22.6]} 13... Qc6 {[%clk
0:02:01.1]} 14. Na3 {[%clk 0:02:16.3]} 14... Ne7 {[%clk 0:01:56.5]} 15. b5
{[%clk 0:02:06.4]} 15... axb5 {[%clk 0:01:47.9]} 16. Bxb5 {[%clk 0:02:06.6]}
16... Qc7 {[%clk 0:01:43.5]} 17. Bxd7+ {[%clk 0:02:02.2]} 17... Qxd7 {[%clk
0:01:44.4]} 18. Nc4 {[%clk 0:02:02.9]} 18... Nc8 {[%clk 0:01:24.8]} 19. f5
{[%clk 0:01:55.4]} 19... d5 {[%clk 0:00:54.7]} 20. fxe6 {[%clk 0:01:53.5]} 20...
fxe6 {[%clk 0:00:53.1]} 21. exd5 {[%clk 0:01:50.3]} 21... exd5 {[%clk 0:00:48]}
22. Re1+ {[%clk 0:01:42]} 22... Kd8 {[%clk 0:00:40.7]} 23. Bg5+ {[%clk
0:01:41.1]} 23... Kc7 {[%clk 0:00:40.3]} 24. Bf4+ {[%clk 0:01:41]} 24... Kc6
{[%clk 0:00:38.9]} 25. Ne5+ {[%clk 0:00:50.2]} 25... Bxe5 {[%clk 0:00:37.9]} 26.
Bxe5 {[%clk 0:00:51.1]} 26... Re8 {[%clk 0:00:35.3]} 27. c4 {[%clk 0:00:33.1]}
27... dxc3 {[%clk 0:00:31.9]} 28. Qb3 {[%clk 0:00:30.3]} 28... Rxe5 {[%clk
0:00:23.7]} 29. Rxe5 {[%clk 0:00:30]} 29... d4 {[%clk 0:00:11.3]} 30. Qc4+
{[%clk 0:00:28.9]} 30... Kd6 {[%clk 0:00:07.5]} 31. Rd5+ {[%clk 0:00:29.2]} 1-0